[Event "Betsys MČR v online bleskovém šachu 2021"]
[Site "Chess.com"]
[Date "2021.04.17"]
[Round "2"]
[White "ikovacs"]
[Black "Kamilotka"]
[Result "0-1"]
[WhiteElo "1049"]
[BlackElo "1642"]
[TimeControl "180+1"]
[EndTime "9:18:36 PDT"]
[Termination "Uživatel Kamilotka zvítězil na čas"]

1. d4 {[%clk 0:03:00.9]} 1... d5 {[%clk 0:02:58.7]} 2. e3 {[%clk 0:03:00]} 2...
Nc6 {[%clk 0:02:58.4]} 3. Nf3 {[%clk 0:03:00.2]} 3... Nf6 {[%clk 0:02:58.1]} 4.
Bb5 {[%clk 0:03:00]} 4... Bd7 {[%clk 0:02:57.6]} 5. O-O {[%clk 0:02:58.6]} 5...
e6 {[%clk 0:02:57.5]} 6. Bxc6 {[%clk 0:02:55.6]} 6... Bxc6 {[%clk 0:02:57.1]} 7.
Ne5 {[%clk 0:02:55.9]} 7... Be7 {[%clk 0:02:51.6]} 8. Nxc6 {[%clk 0:02:53.6]}
8... bxc6 {[%clk 0:02:51.6]} 9. Nd2 {[%clk 0:02:53.6]} 9... c5 {[%clk
0:02:51.5]} 10. dxc5 {[%clk 0:02:52.4]} 10... Bxc5 {[%clk 0:02:51.3]} 11. b3
{[%clk 0:02:50.1]} 11... O-O {[%clk 0:02:47.5]} 12. Bb2 {[%clk 0:02:49.7]} 12...
Be7 {[%clk 0:02:47]} 13. c4 {[%clk 0:02:46]} 13... dxc4 {[%clk 0:02:45]} 14.
Nxc4 {[%clk 0:02:44.5]} 14... Qxd1 {[%clk 0:02:37.7]} 15. Raxd1 {[%clk
0:02:41.2]} 15... Rfd8 {[%clk 0:02:37.9]} 16. Na5 {[%clk 0:02:31.4]} 16... h6
{[%clk 0:02:06.4]} 17. Nc6 {[%clk 0:02:22.4]} 17... Re8 {[%clk 0:01:59.8]} 18.
Bxf6 {[%clk 0:02:10.3]} 18... Bxf6 {[%clk 0:01:57.8]} 19. Rd7 {[%clk 0:02:07.3]}
19... Kf8 {[%clk 0:01:35.8]} 20. Rfd1 {[%clk 0:02:02.6]} 20... Be7 {[%clk
0:01:32.5]} 21. g3 {[%clk 0:01:56.8]} 21... Bd6 {[%clk 0:01:28]} 22. e4 {[%clk
0:01:43.7]} 22... f6 {[%clk 0:01:24.5]} 23. Na5 {[%clk 0:01:25.8]} 23... Re7
{[%clk 0:01:00.1]} 24. Rxe7 {[%clk 0:01:23.1]} 24... Kxe7 {[%clk 0:00:59.6]} 25.
Nc6+ {[%clk 0:01:13.1]} 25... Kd7 {[%clk 0:00:59.3]} 26. Nd4 {[%clk 0:01:06.3]}
26... a5 {[%clk 0:00:49.5]} 27. a4 {[%clk 0:01:02.2]} 27... Rb8 {[%clk
0:00:45.3]} 28. Rc1 {[%clk 0:00:51.3]} 28... c5 {[%clk 0:00:41]} 29. Nb5 {[%clk
0:00:48.7]} 29... e5 {[%clk 0:00:26]} 30. Rd1 {[%clk 0:00:47.6]} 30... Kc6
{[%clk 0:00:23.7]} 31. Rxd6+ {[%clk 0:00:42.6]} 31... Kb7 {[%clk 0:00:22.2]} 32.
Rd7+ {[%clk 0:00:41]} 32... Ka6 {[%clk 0:00:20.8]} 33. Rxg7 {[%clk 0:00:40.1]}
33... Rd8 {[%clk 0:00:20.7]} 34. Rg6 {[%clk 0:00:38.2]} 34... Rd3 {[%clk
0:00:18.7]} 35. Rxf6+ {[%clk 0:00:37.2]} 35... Kb7 {[%clk 0:00:17.8]} 36. Rxh6
{[%clk 0:00:36.4]} 36... Rxb3 {[%clk 0:00:17.6]} 37. Rh7+ {[%clk 0:00:35]} 37...
Kc6 {[%clk 0:00:17.3]} 38. Na7+ {[%clk 0:00:32]} 38... Kb6 {[%clk 0:00:16.8]}
39. Nc8+ {[%clk 0:00:30.2]} 39... Kc6 {[%clk 0:00:16.3]} 40. Ne7+ {[%clk
0:00:24.7]} 40... Kd6 {[%clk 0:00:16.1]} 41. Nd5 {[%clk 0:00:22.4]} 41... Ra3
{[%clk 0:00:14.5]} 42. Rh6+ {[%clk 0:00:20.1]} 42... Kd7 {[%clk 0:00:13.5]} 43.
Ra6 {[%clk 0:00:15.3]} 43... Ra1+ {[%clk 0:00:11]} 44. Kg2 {[%clk 0:00:12.3]}
44... Re1 {[%clk 0:00:10.4]} 45. f3 {[%clk 0:00:09.9]} 45... c4 {[%clk
0:00:06.4]} 46. Kf2 {[%clk 0:00:08.9]} 46... Rc1 {[%clk 0:00:05.8]} 47. Ra7+
{[%clk 0:00:07.2]} 47... Kc6 {[%clk 0:00:05.6]} 48. Ne3 {[%clk 0:00:05]} 48...
c3 {[%clk 0:00:04.4]} 49. Ra8 {[%clk 0:00:04.3]} 49... Kb7 {[%clk 0:00:04.2]}
50. Re8 {[%clk 0:00:02.4]} 50... Ra1 {[%clk 0:00:03.8]} 51. Rxe5 {[%clk
0:00:02.6]} 51... Rxa4 {[%clk 0:00:02.3]} 52. Nd5 {[%clk 0:00:01.3]} 52... Ra3
{[%clk 0:00:02.1]} 0-1

[Event "Betsys MČR v online bleskovém šachu 2021"]
[Site "Chess.com"]
[Date "2021.04.17"]
[Round "2"]
[White "David_Mic"]
[Black "chessbeer17"]
[Result "0-1"]
[WhiteElo "1991"]
[BlackElo "2343"]
[TimeControl "180+1"]
[EndTime "9:18:37 PDT"]
[Termination "Uživatel chessbeer17 zvítězil na čas"]

1. e4 {[%clk 0:03:00.9]} 1... c6 {[%clk 0:02:59.8]} 2. d4 {[%clk 0:03:00.1]}
2... d5 {[%clk 0:03:00.7]} 3. Nd2 {[%clk 0:02:59.7]} 3... dxe4 {[%clk
0:03:00.2]} 4. Nxe4 {[%clk 0:03:00.6]} 4... Bf5 {[%clk 0:03:00.3]} 5. Ng3 {[%clk
0:03:00.5]} 5... Bg6 {[%clk 0:03:00.7]} 6. h4 {[%clk 0:03:00.6]} 6... h6 {[%clk
0:03:00.7]} 7. Nh3 {[%clk 0:03:00.7]} 7... e6 {[%clk 0:03:00.1]} 8. Nf4 {[%clk
0:03:00.6]} 8... Bh7 {[%clk 0:02:59.3]} 9. Bc4 {[%clk 0:03:00.3]} 9... Nf6
{[%clk 0:02:57.7]} 10. O-O {[%clk 0:02:59.7]} 10... Bd6 {[%clk 0:02:53.2]} 11.
Re1 {[%clk 0:02:59.5]} 11... Bxf4 {[%clk 0:02:47.3]} 12. Bxf4 {[%clk 0:02:58.5]}
12... O-O {[%clk 0:02:47.5]} 13. Be5 {[%clk 0:02:48.9]} 13... Nbd7 {[%clk
0:02:45]} 14. Qe2 {[%clk 0:02:41.1]} 14... Nd5 {[%clk 0:02:31.1]} 15. Nh5 {[%clk
0:02:25.7]} 15... Nxe5 {[%clk 0:02:09.7]} 16. Qxe5 {[%clk 0:02:21.9]} 16... Nf6
{[%clk 0:02:09.8]} 17. Nxf6+ {[%clk 0:02:06.6]} 17... Qxf6 {[%clk 0:02:09.6]}
18. Qxf6 {[%clk 0:02:04.3]} 18... gxf6 {[%clk 0:02:10.5]} 19. c3 {[%clk
0:02:02.2]} 19... b5 {[%clk 0:02:10.6]} 20. Be2 {[%clk 0:01:58.9]} 20... Rfc8
{[%clk 0:01:56.2]} 21. Bf3 {[%clk 0:01:57.6]} 21... Rab8 {[%clk 0:01:55.8]} 22.
a3 {[%clk 0:01:45.9]} 22... Kf8 {[%clk 0:01:50.9]} 23. g3 {[%clk 0:01:37]} 23...
Ke7 {[%clk 0:01:49.2]} 24. d5 {[%clk 0:01:33.7]} 24... cxd5 {[%clk 0:01:37.5]}
25. Bxd5 {[%clk 0:01:32.4]} 25... a5 {[%clk 0:01:36.1]} 26. Rad1 {[%clk
0:01:29.7]} 26... b4 {[%clk 0:01:33.7]} 27. axb4 {[%clk 0:01:12.9]} 27... axb4
{[%clk 0:01:34.6]} 28. cxb4 {[%clk 0:01:13.1]} 28... Rxb4 {[%clk 0:01:33.3]} 29.
b3 {[%clk 0:01:10.1]} 29... Rd8 {[%clk 0:01:19.2]} 30. Bc4 {[%clk 0:01:04.4]}
30... Rxd1 {[%clk 0:01:17.3]} 31. Rxd1 {[%clk 0:01:05.3]} 31... Bc2 {[%clk
0:01:16.9]} 32. Ra1 {[%clk 0:00:53.5]} 32... Bxb3 {[%clk 0:01:14.2]} 33. Bxb3
{[%clk 0:00:53.3]} 33... Rxb3 {[%clk 0:01:15.1]} 34. Ra7+ {[%clk 0:00:52.9]}
34... Kf8 {[%clk 0:01:14.8]} 35. Kg2 {[%clk 0:00:51.8]} 35... f5 {[%clk
0:01:09.7]} 36. Rc7 {[%clk 0:00:48.3]} 36... Kg7 {[%clk 0:01:09.3]} 37. Ra7
{[%clk 0:00:46.5]} 37... Kf6 {[%clk 0:01:09]} 38. Rc7 {[%clk 0:00:46.2]} 38...
Rd3 {[%clk 0:00:55.7]} 39. Ra7 {[%clk 0:00:44]} 39... Kg6 {[%clk 0:00:53.7]} 40.
Rb7 {[%clk 0:00:43.1]} 40... f6 {[%clk 0:00:53.1]} 41. Rb6 {[%clk 0:00:42.4]}
41... e5 {[%clk 0:00:52.6]} 42. Rc6 {[%clk 0:00:40.4]} 42... Rd4 {[%clk
0:00:52.5]} 43. Rb6 {[%clk 0:00:39.5]} 43... f4 {[%clk 0:00:52.8]} 44. Rc6
{[%clk 0:00:35.6]} 44... fxg3 {[%clk 0:00:52]} 45. Kxg3 {[%clk 0:00:31.7]} 45...
Kf5 {[%clk 0:00:49.9]} 46. Ra6 {[%clk 0:00:27.8]} 46... Rg4+ {[%clk 0:00:49.2]}
47. Kh3 {[%clk 0:00:27.5]} 47... Rg6 {[%clk 0:00:48]} 48. Ra4 {[%clk 0:00:24]}
48... e4 {[%clk 0:00:46.6]} 49. Ra5+ {[%clk 0:00:18.8]} 49... Kf4 {[%clk
0:00:46.7]} 50. Ra3 {[%clk 0:00:18.8]} 50... f5 {[%clk 0:00:43.9]} 51. Rb3
{[%clk 0:00:18.2]} 51... h5 {[%clk 0:00:35.6]} 52. Rc3 {[%clk 0:00:17.1]} 52...
Rg4 {[%clk 0:00:35.6]} 53. Rb3 {[%clk 0:00:16.5]} 53... Rg1 {[%clk 0:00:34.6]}
54. Kh2 {[%clk 0:00:09.6]} 54... Rd1 {[%clk 0:00:30.8]} 55. Ra3 {[%clk 0:00:08]}
55... Kg4 {[%clk 0:00:29.3]} 56. Ra5 {[%clk 0:00:05.9]} 56... Rd3 {[%clk
0:00:28.5]} 57. Rb5 {[%clk 0:00:04.1]} 57... Rh3+ {[%clk 0:00:27.8]} 58. Kg2
{[%clk 0:00:04.3]} 58... Rxh4 {[%clk 0:00:27.7]} 59. Rc5 {[%clk 0:00:04.3]}
59... Kf4 {[%clk 0:00:27.7]} 60. Rc8 {[%clk 0:00:03.9]} 60... Rg4+ {[%clk
0:00:27.7]} 61. Kf1 {[%clk 0:00:04]} 61... h4 {[%clk 0:00:26.4]} 62. Rh8 {[%clk
0:00:03.5]} 62... Kf3 {[%clk 0:00:25.9]} 63. Ra8 {[%clk 0:00:01.7]} 63... f4
{[%clk 0:00:26.1]} 64. Ra3+ {[%clk 0:00:01.4]} 64... e3 {[%clk 0:00:26.6]} 65.
fxe3 {[%clk 0:00:01.5]} 65... fxe3 {[%clk 0:00:27.5]} 0-1

[Event "Betsys MČR v online bleskovém šachu 2021"]
[Site "Chess.com"]
[Date "2021.04.17"]
[Round "2"]
[White "clarissamcclellan"]
[Black "Ladislav1969"]
[Result "0-1"]
[WhiteElo "1976"]
[BlackElo "2324"]
[TimeControl "180+1"]
[EndTime "9:18:37 PDT"]
[Termination "Uživatel Ladislav1969 zvítězil po vzdání soupeře"]

1. d4 {[%clk 0:03:00.9]} 1... Nf6 {[%clk 0:02:59.5]} 2. c4 {[%clk 0:02:59.8]}
2... g6 {[%clk 0:03:00.1]} 3. g3 {[%clk 0:02:53.8]} 3... d5 {[%clk 0:02:58.4]}
4. cxd5 {[%clk 0:02:50.7]} 4... Nxd5 {[%clk 0:02:58.5]} 5. Bg2 {[%clk
0:02:49.8]} 5... Bg7 {[%clk 0:02:57.9]} 6. e4 {[%clk 0:02:49.6]} 6... Nb6 {[%clk
0:02:57.8]} 7. Ne2 {[%clk 0:02:49.7]} 7... c5 {[%clk 0:02:57.5]} 8. d5 {[%clk
0:02:48.7]} 8... e6 {[%clk 0:02:57.8]} 9. Nbc3 {[%clk 0:02:43.8]} 9... O-O
{[%clk 0:02:54.8]} 10. O-O {[%clk 0:02:43.3]} 10... exd5 {[%clk 0:02:46.9]} 11.
exd5 {[%clk 0:02:42.6]} 11... N8d7 {[%clk 0:02:44]} 12. Qd3 {[%clk 0:02:28.4]}
12... Ne5 {[%clk 0:02:42.6]} 13. Qc2 {[%clk 0:02:23.7]} 13... Bf5 {[%clk
0:02:38.5]} 14. Qd1 {[%clk 0:02:17.1]} 14... Nd3 {[%clk 0:02:08.2]} 15. Nf4
{[%clk 0:02:10]} 15... Nxc1 {[%clk 0:01:56.3]} 16. Rxc1 {[%clk 0:02:09.5]} 16...
Qd7 {[%clk 0:01:50.8]} 17. Ne4 {[%clk 0:01:51.4]} 17... Bxe4 {[%clk 0:01:45.2]}
18. Bxe4 {[%clk 0:01:50.6]} 18... Bxb2 {[%clk 0:01:32.6]} 19. Rxc5 {[%clk
0:01:43.7]} 19... Rac8 {[%clk 0:01:33.2]} 20. Rc2 {[%clk 0:01:38]} 20... Bg7
{[%clk 0:01:28.7]} 21. Qd3 {[%clk 0:01:29.1]} 21... Rxc2 {[%clk 0:01:11.8]} 22.
Qxc2 {[%clk 0:01:28.5]} 22... Rc8 {[%clk 0:01:12.5]} 23. Qd2 {[%clk 0:01:20.2]}
23... Nc4 {[%clk 0:01:11.9]} 24. Qe2 {[%clk 0:01:12.3]} 24... Nd6 {[%clk
0:01:11.3]} 25. Bg2 {[%clk 0:01:09.2]} 25... Qa4 {[%clk 0:01:00.8]} 26. Nd3
{[%clk 0:00:33.5]} 26... Rc2 {[%clk 0:00:56.8]} 27. Qe7 {[%clk 0:00:32.1]} 27...
Bf8 {[%clk 0:00:56.4]} 28. Qd8 {[%clk 0:00:23.1]} 28... Rc8 {[%clk 0:00:53.7]}
29. Qg5 {[%clk 0:00:19.8]} 29... Qxa2 {[%clk 0:00:49.1]} 30. Ne5 {[%clk
0:00:18.9]} 30... Bg7 {[%clk 0:00:38.7]} 31. Ng4 {[%clk 0:00:18.6]} 31... Qb2
{[%clk 0:00:32.5]} 32. Nh6+ {[%clk 0:00:17.5]} 32... Bxh6 {[%clk 0:00:30.9]} 33.
Qxh6 {[%clk 0:00:17.3]} 33... a5 {[%clk 0:00:29.1]} 34. Qf4 {[%clk 0:00:16.7]}
34... Qb4 {[%clk 0:00:24.5]} 35. Qxb4 {[%clk 0:00:14.6]} 35... axb4 {[%clk
0:00:24.2]} 36. Rb1 {[%clk 0:00:15.5]} 36... Rc4 {[%clk 0:00:23.6]} 37. Bf1
{[%clk 0:00:14.6]} 37... Rd4 {[%clk 0:00:23.3]} 38. Bg2 {[%clk 0:00:13.2]} 38...
Kg7 {[%clk 0:00:22.2]} 39. Bf3 {[%clk 0:00:13]} 39... Kf6 {[%clk 0:00:19.6]} 40.
Kf1 {[%clk 0:00:13.1]} 40... Nb5 {[%clk 0:00:19.7]} 41. Kg2 {[%clk 0:00:12.2]}
41... Nc3 {[%clk 0:00:18.9]} 42. Rb3 {[%clk 0:00:11.7]} 42... b5 {[%clk
0:00:16.3]} 43. Kf1 {[%clk 0:00:10.2]} 43... Nxd5 {[%clk 0:00:15.1]} 44. Bxd5
{[%clk 0:00:09.7]} 44... Rxd5 {[%clk 0:00:15.7]} 45. Rxb4 {[%clk 0:00:10.1]}
45... Ke6 {[%clk 0:00:16.1]} 46. Ke2 {[%clk 0:00:10.3]} 46... Kd6 {[%clk
0:00:16.4]} 47. f4 {[%clk 0:00:10.3]} 47... Kc5 {[%clk 0:00:16.6]} 48. Rb2
{[%clk 0:00:10.3]} 48... Rd4 {[%clk 0:00:16.6]} 49. Ke3 {[%clk 0:00:10.4]} 49...
b4 {[%clk 0:00:15.7]} 50. Rb1 {[%clk 0:00:10.7]} 50... Rc4 {[%clk 0:00:15.5]}
51. Kd3 {[%clk 0:00:10.4]} 51... Rc3+ {[%clk 0:00:15.3]} 52. Ke4 {[%clk
0:00:10.2]} 52... Rc2 {[%clk 0:00:14.8]} 53. Ke5 {[%clk 0:00:10.2]} 53... Rxh2
{[%clk 0:00:13.4]} 54. Kf6 {[%clk 0:00:10.7]} 54... Rg2 {[%clk 0:00:13]} 55.
Kxf7 {[%clk 0:00:10.9]} 55... Rxg3 {[%clk 0:00:13.3]} 56. Kg7 {[%clk 0:00:11]}
56... Rf3 {[%clk 0:00:13.6]} 57. Kxh7 {[%clk 0:00:11]} 57... Rxf4 {[%clk
0:00:13.7]} 58. Kxg6 {[%clk 0:00:11.2]} 58... Kc4 {[%clk 0:00:13.3]} 59. Kg5
{[%clk 0:00:11.2]} 59... Rf2 {[%clk 0:00:13.8]} 60. Kg4 {[%clk 0:00:11.1]} 60...
b3 {[%clk 0:00:14.1]} 0-1

[Event "Betsys MČR v online bleskovém šachu 2021"]
[Site "Chess.com"]
[Date "2021.04.17"]
[Round "2"]
[White "Dejfos"]
[Black "androidddd"]
[Result "1-0"]
[WhiteElo "1828"]
[BlackElo "1410"]
[TimeControl "180+1"]
[EndTime "9:18:37 PDT"]
[Termination "Uživatel Dejfos zvítězil na čas"]

1. e4 {[%clk 0:02:56]} 1... c6 {[%clk 0:02:56.6]} 2. d4 {[%clk 0:02:54]} 2... d5
{[%clk 0:02:52.4]} 3. Nc3 {[%clk 0:02:52.9]} 3... dxe4 {[%clk 0:02:51]} 4. Nxe4
{[%clk 0:02:51.8]} 4... Nd7 {[%clk 0:02:45.2]} 5. Nf3 {[%clk 0:02:46.4]} 5...
Ngf6 {[%clk 0:02:42.7]} 6. Bd3 {[%clk 0:02:34.5]} 6... Nxe4 {[%clk 0:02:40.2]}
7. Bxe4 {[%clk 0:02:34.2]} 7... Nf6 {[%clk 0:02:39.7]} 8. Bd3 {[%clk 0:02:31.5]}
8... Bg4 {[%clk 0:02:38.7]} 9. c3 {[%clk 0:02:27.5]} 9... e6 {[%clk 0:02:32.8]}
10. O-O {[%clk 0:02:26.9]} 10... Be7 {[%clk 0:02:29.9]} 11. Bf4 {[%clk
0:02:21.5]} 11... O-O {[%clk 0:02:22.6]} 12. h3 {[%clk 0:02:20.9]} 12... Bh5
{[%clk 0:02:16.5]} 13. Qe2 {[%clk 0:02:05.5]} 13... Bxf3 {[%clk 0:01:52.7]} 14.
Qxf3 {[%clk 0:02:02.1]} 14... Qd5 {[%clk 0:01:52.2]} 15. Qxd5 {[%clk 0:01:58.6]}
15... Nxd5 {[%clk 0:01:49.8]} 16. Bg3 {[%clk 0:01:54.2]} 16... c5 {[%clk
0:01:42.7]} 17. dxc5 {[%clk 0:01:47.8]} 17... Bxc5 {[%clk 0:01:39.2]} 18. Rad1
{[%clk 0:01:40.6]} 18... b6 {[%clk 0:01:30.8]} 19. a3 {[%clk 0:01:36.2]} 19...
Rac8 {[%clk 0:01:23.6]} 20. Bb1 {[%clk 0:01:33.1]} 20... Rfd8 {[%clk 0:01:18.6]}
21. c4 {[%clk 0:01:28.4]} 21... Nf6 {[%clk 0:01:13.6]} 22. b4 {[%clk 0:01:20.3]}
22... Be7 {[%clk 0:01:10]} 23. Ba2 {[%clk 0:00:53.5]} 23... g6 {[%clk 0:01:04]}
24. f3 {[%clk 0:00:44.5]} 24... Kg7 {[%clk 0:00:50.7]} 25. Be5 {[%clk
0:00:40.1]} 25... Kf8 {[%clk 0:00:39.1]} 26. Kf2 {[%clk 0:00:38.7]} 26... Nd7
{[%clk 0:00:29.4]} 27. Bg3 {[%clk 0:00:30.8]} 27... Nf6 {[%clk 0:00:13.5]} 28.
Ke2 {[%clk 0:00:20.5]} 28... Nh5 {[%clk 0:00:13.3]} 29. Bh2 {[%clk 0:00:19.8]}
29... Kg7 {[%clk 0:00:09.5]} 30. g4 {[%clk 0:00:19.3]} 30... Nf6 {[%clk
0:00:08.6]} 31. Be5 {[%clk 0:00:18.9]} 31... Kf8 {[%clk 0:00:06.7]} 32. Rxd8+
{[%clk 0:00:15.4]} 32... Rxd8 {[%clk 0:00:06.2]} 33. Rd1 {[%clk 0:00:15.2]}
33... Rxd1 {[%clk 0:00:05.5]} 34. Kxd1 {[%clk 0:00:15.2]} 34... Ke8 {[%clk
0:00:05.7]} 35. Kd2 {[%clk 0:00:13.8]} 35... Kd7 {[%clk 0:00:06]} 36. Kd3 {[%clk
0:00:13.2]} 36... Kc6 {[%clk 0:00:06.2]} 37. f4 {[%clk 0:00:09.2]} 37... Nd7
{[%clk 0:00:06]} 38. Bb2 {[%clk 0:00:07.9]} 38... Bf6 {[%clk 0:00:05.1]} 39.
Bxf6 {[%clk 0:00:06.9]} 39... Nxf6 {[%clk 0:00:05.4]} 40. Kd4 {[%clk 0:00:07]}
40... Kd6 {[%clk 0:00:05.3]} 41. Bb1 {[%clk 0:00:06.2]} 41... Ne8 {[%clk
0:00:04.5]} 42. c5+ {[%clk 0:00:05.8]} 42... bxc5+ {[%clk 0:00:04]} 43. bxc5+
{[%clk 0:00:06]} 43... Kc6 {[%clk 0:00:04.4]} 44. Be4+ {[%clk 0:00:05.9]} 44...
Kd7 {[%clk 0:00:04.1]} 45. c6+ {[%clk 0:00:05.8]} 45... Kd6 {[%clk 0:00:04.5]}
46. Kc4 {[%clk 0:00:05.7]} 46... Nc7 {[%clk 0:00:04.3]} 47. a4 {[%clk
0:00:05.5]} 47... a6 {[%clk 0:00:04.3]} 48. a5 {[%clk 0:00:05.1]} 48... f5
{[%clk 0:00:03.9]} 49. gxf5 {[%clk 0:00:04.8]} 49... exf5 {[%clk 0:00:04.2]} 50.
Bf3 {[%clk 0:00:03.9]} 50... h6 {[%clk 0:00:01.5]} 51. h4 {[%clk 0:00:03.5]}
51... h5 {[%clk 0:00:01.1]} 52. Kd4 {[%clk 0:00:03.1]} 52... Ne6+ {[%clk
0:00:01.5]} 53. Kc4 {[%clk 0:00:03]} 53... Nxf4 {[%clk 0:00:01.6]} 54. Kc3
{[%clk 0:00:03.1]} 54... Nh3 {[%clk 0:00:01.1]} 55. c7 {[%clk 0:00:02.9]} 1-0

[Event "Betsys MČR v online bleskovém šachu 2021"]
[Site "Chess.com"]
[Date "2021.04.17"]
[Round "2"]
[White "conysek"]
[Black "tryskomys"]
[Result "1-0"]
[WhiteElo "2115"]
[BlackElo "1424"]
[TimeControl "180+1"]
[EndTime "9:18:40 PDT"]
[Termination "Uživatel conysek zvítězil na čas"]

1. e4 {[%clk 0:03:00.9]} 1... e5 {[%clk 0:02:59.1]} 2. Nf3 {[%clk 0:03:00.4]}
2... Nc6 {[%clk 0:02:57.4]} 3. Bb5 {[%clk 0:03:00.3]} 3... a6 {[%clk 0:02:47.7]}
4. Ba4 {[%clk 0:02:59.6]} 4... Nf6 {[%clk 0:02:47.1]} 5. O-O {[%clk 0:02:58.3]}
5... b5 {[%clk 0:02:37.7]} 6. Bb3 {[%clk 0:02:57.5]} 6... Be7 {[%clk 0:02:35.1]}
7. Re1 {[%clk 0:02:56]} 7... O-O {[%clk 0:02:27.1]} 8. h3 {[%clk 0:02:56.1]}
8... d6 {[%clk 0:02:10.3]} 9. c3 {[%clk 0:02:56.1]} 9... Bb7 {[%clk 0:02:04]}
10. d3 {[%clk 0:02:52.1]} 10... Na5 {[%clk 0:02:01.6]} 11. Bc2 {[%clk
0:02:52.1]} 11... c5 {[%clk 0:02:01.7]} 12. Nbd2 {[%clk 0:02:52.3]} 12... Nc6
{[%clk 0:02:00.1]} 13. Nf1 {[%clk 0:02:51.2]} 13... d5 {[%clk 0:01:45.4]} 14.
exd5 {[%clk 0:02:48.9]} 14... Nxd5 {[%clk 0:01:45.3]} 15. Nxe5 {[%clk
0:02:42.5]} 15... Nxe5 {[%clk 0:01:45.1]} 16. Rxe5 {[%clk 0:02:42.4]} 16... Bd6
{[%clk 0:01:44.5]} 17. Re1 {[%clk 0:02:41.9]} 17... Qh4 {[%clk 0:01:40.9]} 18.
Qf3 {[%clk 0:02:29.9]} 18... Rab8 {[%clk 0:01:36.5]} 19. Re4 {[%clk 0:02:24.4]}
19... Qd8 {[%clk 0:01:33.6]} 20. Re1 {[%clk 0:02:04.3]} 20... Nxc3 {[%clk
0:01:26.8]} 21. Qh5 {[%clk 0:01:56.2]} 21... Nd5 {[%clk 0:01:22.5]} 22. Ne3
{[%clk 0:01:46.6]} 22... Nf6 {[%clk 0:01:21.6]} 23. Qh4 {[%clk 0:01:40.8]} 23...
Be7 {[%clk 0:01:20.7]} 24. Nf5 {[%clk 0:01:35.2]} 24... Re8 {[%clk 0:01:18.2]}
25. Bf4 {[%clk 0:01:20.1]} 25... Rc8 {[%clk 0:01:07.8]} 26. Qg5 {[%clk
0:01:06.5]} 26... g6 {[%clk 0:01:06]} 27. Nxe7+ {[%clk 0:01:01.9]} 27... Rxe7
{[%clk 0:01:04.7]} 28. Be5 {[%clk 0:00:41.9]} 28... Ne8 {[%clk 0:00:51.2]} 29.
Qh6 {[%clk 0:00:35.5]} 29... f6 {[%clk 0:00:46]} 30. Bc3 {[%clk 0:00:32]} 30...
Qd5 {[%clk 0:00:43.6]} 31. f3 {[%clk 0:00:23.3]} 31... Rf7 {[%clk 0:00:33.9]}
32. Re2 {[%clk 0:00:14.6]} 32... Nd6 {[%clk 0:00:31.3]} 33. Rae1 {[%clk
0:00:15]} 33... Bc6 {[%clk 0:00:30]} 34. Re7 {[%clk 0:00:13.9]} 34... Nf5 {[%clk
0:00:28.2]} 35. Qf4 {[%clk 0:00:06.4]} 35... Nxe7 {[%clk 0:00:26.2]} 36. Rxe7
{[%clk 0:00:04]} 36... Rxe7 {[%clk 0:00:23]} 37. Bb3 {[%clk 0:00:04.6]} 37... c4
{[%clk 0:00:22.4]} 38. dxc4 {[%clk 0:00:05.5]} 38... Qc5+ {[%clk 0:00:21.9]} 39.
Bd4 {[%clk 0:00:04.2]} 39... Qg5 {[%clk 0:00:19.6]} 40. cxb5+ {[%clk 0:00:04.5]}
40... Kg7 {[%clk 0:00:17.7]} 41. Qxg5 {[%clk 0:00:05.4]} 41... axb5 {[%clk
0:00:16.3]} 42. Qd2 {[%clk 0:00:04.2]} 42... Be8 {[%clk 0:00:13.4]} 43. Qf2
{[%clk 0:00:04.9]} 43... Bf7 {[%clk 0:00:12.7]} 44. Kh2 {[%clk 0:00:05.2]} 44...
Rd8 {[%clk 0:00:12.4]} 45. Bxf7 {[%clk 0:00:05.2]} 45... Kxf7 {[%clk 0:00:10.4]}
46. Bc3 {[%clk 0:00:06.1]} 46... Red7 {[%clk 0:00:10.5]} 47. Qc5 {[%clk
0:00:05.9]} 47... f5 {[%clk 0:00:10]} 48. Qxb5 {[%clk 0:00:06.1]} 48... Rd5
{[%clk 0:00:09.7]} 49. Qb3 {[%clk 0:00:06.6]} 49... Ke6 {[%clk 0:00:09.1]} 50.
Qb6+ {[%clk 0:00:06.7]} 50... Ke7 {[%clk 0:00:08.4]} 51. Qe3+ {[%clk 0:00:07.3]}
51... Kf7 {[%clk 0:00:07.4]} 52. a4 {[%clk 0:00:08]} 52... Rd3 {[%clk
0:00:07.4]} 53. Qb6 {[%clk 0:00:06.5]} 53... Rd1 {[%clk 0:00:06.1]} 54. Qb3+
{[%clk 0:00:06.9]} 54... Kf8 {[%clk 0:00:04.8]} 55. a5 {[%clk 0:00:07.4]} 55...
R1d5 {[%clk 0:00:03.5]} 56. a6 {[%clk 0:00:07.6]} 56... f4 {[%clk 0:00:03.1]}
57. a7 {[%clk 0:00:07.5]} 57... R5d7 {[%clk 0:00:03.2]} 58. Qa3+ {[%clk
0:00:06.8]} 58... Kf7 {[%clk 0:00:02.5]} 59. a8=Q {[%clk 0:00:07.7]} 1-0